{"text_format":"3","workbook":"xlsx","n_sheets":26,"sheets":["Начало","1","2","3","4","5","6","7","8","9","10","11","12","13","14","15","16","17","18","19","20","21","22","23","24","Научете повече"],"not_rendered":{"images":24,"defined_names":5,"pivot_tables":19},"read":"whole","date_system":"1900"}

{"sheet":"Начало","index":0,"n_rows":5,"n_cols":1,"rows_kept":5}
["Добре дошли\nИнструкции за екранни четци: Извлечете повече полза от обобщените таблици. Една проста обобщена таблица ви дава цялостно резюме на вашите данни, но понякога ви трябват подробни отговори на конкретни въпроси. За тази цел може да ви помогне добавянето на още полета за колони и полета за редове. \nИнструкциите указват в кои клетки да отидете, за да използвате дадена функция, или да продължите да четете нататък.\nЗа да започнете, натиснете CTRL+PAGE DOWN."]
["Извлечете повече полза от обобщените таблици"]
["Една проста обобщена таблица ви дава цялостно резюме на вашите данни,\nно понякога ви трябват подробни отговори на конкретни въпроси.\nЗа тази цел може да ви помогне добавянето на още полета за колони и полета за редове."]
["ДОБРЕ Е ДА ЗНАЕТЕ\nМинахте ли първия урок? Ако не, отидете на \"Файл\" > \"Създай\" и намерете \"Направете своята първа обобщена таблица\"."]
["За да се върнете в началото, натиснете CTRL+HOME. За да започнете обиколката, натиснете CTRL+PAGE DOWN."]

{"sheet":"1","index":1,"n_rows":16,"n_cols":9,"rows_kept":16}
["В първия урок ви представихме понятието за обобщена таблица. Също така обяснихме как поле за редове може да се използва като условие, което извършва разбивка на поле за стойности.   "]
["Клетките от H10 до I14 съдържат обобщена таблица, която обобщава данните в клетки от B8 до E16. Обобщената таблица е с две колони: \"Купувач\" и \"Сума от Сума\". Колоната \"Купувач\" съдържа стойностите \"Татко\", \"Мама\", \"Мила\" и \"Сума от Сума\"; колоната \"Сума от Сума\" съдържа стойностите 220 лв., 270 лв., 810 лв. и 1 300 лв. Колоната \"Купувач\" се състои от едно поле за редове, а колоната \"Сума от Сума\" се състои от едно поле за стойности."]
["За да продължите с този урок, натиснете CTRL+PAGE DOWN. За да отидете на предишния лист, натиснете CTRL+PAGE UP."]
[]
[]
[]
[]
[null,"Дата","Купувач","Тип","Сума"]
["Този пример показва как полето за редове...","2017-01-01","Татко","Подаръци",{"v":95,"d":"95 лв."}]
["...извършва разбивка на полето за стойности.","2017-01-15","Мама","Храна",{"v":325,"d":"325 лв."},null,null,"Купувач","Сума от Сума"]
[null,"2017-01-17","Мама","Билети",{"v":250,"d":"250 лв."},null,null,"Мама",{"v":810,"d":"810 лв."}]
[null,"2017-01-21","Татко","Храна",{"v":125,"d":"125 лв."},null,null,"Мила",{"v":270,"d":"270 лв."}]
[null,"2017-02-02","Мама","Храна",{"v":235,"d":"235 лв."},null,null,"Татко",{"v":220,"d":"220 лв."}]
[null,"2017-02-20","Мила","Музика",{"v":20,"d":"20 лв."},null,null,"Grand Total",{"v":1300,"d":"1,300 лв."}]
[null,"2017-02-25","Мила","Билети",{"v":125,"d":"125 лв."}]
[null,"2017-02-25","Мила","Спорт",{"v":125,"d":"125 лв."}]

{"sheet":"2","index":2,"n_rows":108,"n_cols":7,"rows_kept":108}
["Но когато погледнете за първи път обобщена таблица, може да откриете, че имате нужда от още отговори."]
["Когато погледнете за първи път обобщена таблица, може да си зададете въпроси, като например \"Кога са се случили тези покупки?\", \"За какво всеки човек е похарчил пари?\", \"Какво е купила мама, което е било толкова скъпо?\"."]
["В този пример клетки от F11 до G15 показват същата обобщена таблица с две колони, както преди. Колоната \"Купувач\" е поле за редове и съдържа стойностите \"Татко\", \"Мама\", \"Мила\" и \"Обща сума\"; колоната \"Сума от Сума\" е полето за стойности и съдържа стойностите 220 лв., 270 лв., 810 лв. и 1 300 лв. "]
["За да продължите с този урок, натиснете CTRL+PAGE DOWN. За да отидете на предишния лист, натиснете CTRL+PAGE UP."]
[]
[]
[]
[]
[]
[]
[{"$nulls":5},"Купувач","Сума от Сума"]
[{"$nulls":5},"Татко",{"v":220,"d":"220 лв."}]
[{"$nulls":5},"Мила",{"v":270,"d":"270 лв."}]
[{"$nulls":5},"Мама",{"v":810,"d":"810 лв."}]
[{"$nulls":5},"Grand Total",{"v":1300,"d":"1,300 лв."}]
{"$rows_empty":84}
[null,"Дата","Купувач","Тип","Сума"]
[null,"2017-01-01","Татко","Подаръци",{"v":95,"d":"95 лв."}]
[null,"2017-01-15","Мама","Храна",{"v":325,"d":"325 лв."}]
[null,"2017-01-17","Мама","Билети",{"v":250,"d":"250 лв."}]
[null,"2017-01-21","Татко","Храна",{"v":125,"d":"125 лв."}]
[null,"2017-02-02","Мама","Храна",{"v":235,"d":"235 лв."}]
[null,"2017-02-20","Мила","Музика",{"v":20,"d":"20 лв."}]
[null,"2017-02-25","Мила","Билети",{"v":125,"d":"125 лв."}]
[null,"2017-02-25","Мила","Спорт",{"v":125,"d":"125 лв."}]

{"sheet":"3","index":3,"n_rows":108,"n_cols":7,"rows_kept":108}
["Всички тези са смислени въпроси, но нека за момента да се съсредоточим само върху един въпрос."]
["За какво всеки човек е похарчил пари?"]
["За справка, клетки от F11 до G15 показват същата обобщена таблица с две колони, както преди. Колоната \"Купувач\" е поле за редове и съдържа стойностите \"Татко\", \"Мама\", \"Мила\" и \"Сума от Сума\"; колоната \"Сбор на сумите\" е полето за стойности и съдържа стойностите 220 лв., 270 лв., 810 лв. и 1 300 лв. "]
["За да продължите с този урок, натиснете CTRL+PAGE DOWN. За да отидете на предишния лист, натиснете CTRL+PAGE UP."]
[]
[]
[]
[]
[]
[]
[{"$nulls":5},"Купувач","Сума от Сума"]
[{"$nulls":5},"Татко",{"v":220,"d":"220 лв."}]
[{"$nulls":5},"Мила",{"v":270,"d":"270 лв."}]
[{"$nulls":5},"Мама",{"v":810,"d":"810 лв."}]
[{"$nulls":5},"Grand Total",{"v":1300,"d":"1,300 лв."}]
{"$rows_empty":84}
[null,"Дата","Купувач","Тип","Сума"]
[null,"2017-01-01","Татко","Подаръци",{"v":95,"d":"95 лв."}]
[null,"2017-01-15","Мама","Храна",{"v":325,"d":"325 лв."}]
[null,"2017-01-17","Мама","Билети",{"v":250,"d":"250 лв."}]
[null,"2017-01-21","Татко","Храна",{"v":125,"d":"125 лв."}]
[null,"2017-02-02","Мама","Храна",{"v":235,"d":"235 лв."}]
[null,"2017-02-20","Мила","Музика",{"v":20,"d":"20 лв."}]
[null,"2017-02-25","Мила","Билети",{"v":125,"d":"125 лв."}]
[null,"2017-02-25","Мила","Спорт",{"v":125,"d":"125 лв."}]

{"sheet":"4","index":4,"n_rows":108,"n_cols":9,"rows_kept":108}
["Последният въпрос, който зададохме, беше \"За какво всеки човек е похарчил пари?\"."]
["Отговорихме на този въпрос, като добавихме поле за колони за \"Тип\". В резултат на това обобщената таблица сега има пет нови колони, които ни показват типа на покупката, направена от всеки човек. "]
["Нашата нова обобщена таблица сега се разпростира от клетка C10 до клетка I15 с колони за \"Купувач\", \"Храна\", \"Музика\", \"Спорт\", \"Билети\", \"Подаръци\" и \"Обща сума\". \"Купувач\" и \"Обща сума\" са същите като преди, а новите колони с подробности са между тях."]
["За да продължите с този урок, натиснете CTRL+PAGE DOWN. За да отидете на предишния лист, натиснете CTRL+PAGE UP."]
[]
[]
[]
[]
[]
[null,null,"Сума от Сума","Тип"]
[null,null,"Купувач","Храна","Музика","Спорт","Билети","Подаръци","Grand Total"]
[null,null,"Татко",{"v":125,"d":"125 лв."},{"$nulls":3},{"v":95,"d":"95 лв."},{"v":220,"d":"220 лв."}]
[null,null,"Мила",null,{"v":20,"d":"20 лв."},{"v":125,"d":"125 лв."},{"v":125,"d":"125 лв."},null,{"v":270,"d":"270 лв."}]
[null,null,"Мама",{"v":560,"d":"560 лв."},null,null,{"v":250,"d":"250 лв."},null,{"v":810,"d":"810 лв."}]
[null,null,"Grand Total",{"v":685,"d":"685 лв."},{"v":20,"d":"20 лв."},{"v":125,"d":"125 лв."},{"v":375,"d":"375 лв."},{"v":95,"d":"95 лв."},{"v":1300,"d":"1,300 лв."}]
{"$rows_empty":84}
[null,"Дата","Купувач","Тип","Сума"]
[null,"2017-01-01","Татко","Подаръци",{"v":95,"d":"95 лв."}]
[null,"2017-01-15","Мама","Храна",{"v":325,"d":"325 лв."}]
[null,"2017-01-17","Мама","Билети",{"v":250,"d":"250 лв."}]
[null,"2017-01-21","Татко","Храна",{"v":125,"d":"125 лв."}]
[null,"2017-02-02","Мама","Храна",{"v":235,"d":"235 лв."}]
[null,"2017-02-20","Мила","Музика",{"v":20,"d":"20 лв."}]
[null,"2017-02-25","Мила","Билети",{"v":125,"d":"125 лв."}]
[null,"2017-02-25","Мила","Спорт",{"v":125,"d":"125 лв."}]

{"sheet":"5","index":5,"n_rows":108,"n_cols":9,"rows_kept":108}
["Ако обобщената таблица е трудна за разбиране, опитайте следното: Четете от ляво, след това от горе и накрая надолу. В примера по-долу \"Татко\" е в клетка C12, храна за 125 лв. – в клетка D12, подаръци за 95 лв. – в клетка E12, а Oбща сума от 220 лв. е в клетка I12. Редове 13 и 14 показват подробните данни за Мила и Мама, а ред 15 показва Oбща сума."]
["За да продължите с този урок, натиснете CTRL+PAGE DOWN. За да отидете на предишния лист, натиснете CTRL+PAGE UP."]
{"$rows_empty":7}
[null,null,"Сума от Сума","Тип"]
[null,null,"Купувач","Храна","Подаръци","Музика","Спорт","Билети","Grand Total"]
[null,null,"Татко",{"v":125,"d":"125 лв."},{"v":95,"d":"95 лв."},{"$nulls":3},{"v":220,"d":"220 лв."}]
[null,null,"Мила",null,null,{"v":20,"d":"20 лв."},{"v":125,"d":"125 лв."},{"v":125,"d":"125 лв."},{"v":270,"d":"270 лв."}]
[null,null,"Мама",{"v":560,"d":"560 лв."},{"$nulls":3},{"v":250,"d":"250 лв."},{"v":810,"d":"810 лв."}]
[null,null,"Grand Total",{"v":685,"d":"685 лв."},{"v":95,"d":"95 лв."},{"v":20,"d":"20 лв."},{"v":125,"d":"125 лв."},{"v":375,"d":"375 лв."},{"v":1300,"d":"1,300 лв."}]
{"$rows_empty":84}
[null,"Дата","Купувач","Тип","Сума"]
[null,"2017-01-01","Татко","Подаръци",{"v":95,"d":"95 лв."}]
[null,"2017-01-15","Мама","Храна",{"v":325,"d":"325 лв."}]
[null,"2017-01-17","Мама","Билети",{"v":250,"d":"250 лв."}]
[null,"2017-01-21","Татко","Храна",{"v":125,"d":"125 лв."}]
[null,"2017-02-02","Мама","Храна",{"v":235,"d":"235 лв."}]
[null,"2017-02-20","Мила","Музика",{"v":20,"d":"20 лв."}]
[null,"2017-02-25","Мила","Билети",{"v":125,"d":"125 лв."}]
[null,"2017-02-25","Мила","Спорт",{"v":125,"d":"125 лв."}]

{"sheet":"6","index":6,"n_rows":3,"n_cols":1,"rows_kept":3}
["Не правете това сега, но след няколко стъпки ще работите с обобщена таблица. Първото нещо, които ще направите, е да създадете подробности за полето в колони. Ще направите това, като поставите полето \"Тип\" в областта за полета \"Колони\"."]
["Изображението на списъка с полета на обобщената таблица показва стрелка, сочеща плъзгането на полето \"Тип\" към областта \"Колони\"."]
["За да продължите с този урок, натиснете CTRL+PAGE DOWN. За да отидете на предишния лист, натиснете CTRL+PAGE UP."]

{"sheet":"7","index":7,"n_rows":108,"n_cols":10,"rows_kept":108}
["1. Областта на обобщената таблица за този пример е в клетки от B15 до C19. Придвижете се до някоя от тези клетки."]
["2. Натиснете ALT + ПИ, И, за да стартирате списъка с полета на обобщената таблица. По подразбиране фокусът ще бъде текстовото поле за търсене: Редактиране на \"Търсене\""]
["3. Натиснете клавишите със стрелки, за да изберете полето \"Тип\". След като го изберете, натиснете клавиша за интервал, за да добавите полето \"Тип\" към областта \"Редове\". "]
["4. Натиснете Tab, за да изберете полето „Тип“. Натиснете Enter, след което натиснете клавишите със стрелки, за да изберете Премести в етикетите на колоните и натиснете клавиша Enter, за да добавите полето „Тип“ към Областта за колони. Натиснете ALT + ПИ + И, за да излезете от екрана с полета на обобщената таблица."]
["За да продължите с този урок, натиснете CTRL+PAGE DOWN. За да отидете на предишния лист, натиснете CTRL+PAGE UP."]
[]
[]
[]
[{"$nulls":9},{"$f":"IF(AND($B$16=\"Купувач\",$H$19=810),\"Добра работа! Поставили сте\",\" \")","v":" "}]
[{"$nulls":9},{"$f":"IF(AND($B$16=\"Купувач\",$H$19=810),\"своето първо поле за колони.\",\" \")","v":" "}]
[{"$nulls":9},{"$f":"IF(AND($B$16=\"Купувач\",$H$19=810),\"Щракнете върху Напред, за да\",\" \")","v":" "}]
[{"$nulls":9},{"$f":"IF(AND($B$16=\"Купувач\",$H$19=810),\"продължите...\",\" \")","v":" "}]
[]
[]
[null,"Купувач","Сума от Сума"]
[null,"Татко",{"v":220,"d":"220 лв."}]
[null,"Мила",{"v":270,"d":"270 лв."}]
[null,"Мама",{"v":810,"d":"810 лв."}]
[null,"Grand Total",{"v":1300,"d":"1,300 лв."}]
{"$rows_empty":80}
[null,"Дата","Купувач","Тип","Сума"]
[null,"2017-01-01","Татко","Подаръци",{"v":95,"d":"95 лв."}]
[null,"2017-01-15","Мама","Храна",{"v":325,"d":"325 лв."}]
[null,"2017-01-17","Мама","Билети",{"v":250,"d":"250 лв."}]
[null,"2017-01-21","Татко","Храна",{"v":125,"d":"125 лв."}]
[null,"2017-02-02","Мама","Храна",{"v":235,"d":"235 лв."}]
[null,"2017-02-20","Мила","Музика",{"v":20,"d":"20 лв."}]
[null,"2017-02-25","Мила","Билети",{"v":125,"d":"125 лв."}]
[null,"2017-02-25","Мила","Спорт",{"v":125,"d":"125 лв."}]

{"sheet":"8","index":8,"n_rows":108,"n_cols":9,"rows_kept":108}
["Нека разгледаме обобщената таблица, която създадохте току-що, но този път добавихме някои специални цветове, за да разграничим полетата за редове, колони и стойности."]
["Полето за редове обхваща клетки от C11 до C14 и е оцветено в жълто."]
["Полето за колони обхваща клетки от D9 до H10 и е оцветено в оранжево."]
["Полето за стойности обхваща клетки от D11 до H13 и е оцветено в синьо."]
["За да продължите с този урок, натиснете CTRL+PAGE DOWN. За да отидете на предишния лист, натиснете CTRL+PAGE UP."]
[]
[]
[]
[]
[null,null,"Сума от Сума","Тип"]
[null,null,"Купувач","Храна","Подаръци","Музика","Спорт","Билети","Grand Total"]
[null,null,"Татко",{"v":125,"d":"125 лв."},{"v":95,"d":"95 лв."},{"$nulls":3},{"v":220,"d":"220 лв."}]
[null,null,"Мила",null,null,{"v":20,"d":"20 лв."},{"v":125,"d":"125 лв."},{"v":125,"d":"125 лв."},{"v":270,"d":"270 лв."}]
[null,null,"Мама",{"v":560,"d":"560 лв."},{"$nulls":3},{"v":250,"d":"250 лв."},{"v":810,"d":"810 лв."}]
[null,null,"Grand Total",{"v":685,"d":"685 лв."},{"v":95,"d":"95 лв."},{"v":20,"d":"20 лв."},{"v":125,"d":"125 лв."},{"v":375,"d":"375 лв."},{"v":1300,"d":"1,300 лв."}]
{"$rows_empty":84}
[null,"Дата","Купувач","Тип","Сума"]
[null,"2017-01-01","Татко","Подаръци",{"v":95,"d":"95 лв."}]
[null,"2017-01-15","Мама","Храна",{"v":325,"d":"325 лв."}]
[null,"2017-01-17","Мама","Билети",{"v":250,"d":"250 лв."}]
[null,"2017-01-21","Татко","Храна",{"v":125,"d":"125 лв."}]
[null,"2017-02-02","Мама","Храна",{"v":235,"d":"235 лв."}]
[null,"2017-02-20","Мила","Музика",{"v":20,"d":"20 лв."}]
[null,"2017-02-25","Мила","Билети",{"v":125,"d":"125 лв."}]
[null,"2017-02-25","Мила","Спорт",{"v":125,"d":"125 лв."}]

{"sheet":"9","index":9,"n_rows":3,"n_cols":1,"rows_kept":3}
["Има и друг начин да помислите за това: Полето за редове е вляво, а полето за колони е отгоре. Всяко от тях осигурява условие за полето за стойности, което ги сумира."]
["Концептуално изображение показва правоъгълна област с 4 раздела, в която полето за редове е в долния ляв ъгъл в жълто, полето за колони – в горния десен ъгъл в оранжево, а полето за стойности – в долния десен ъгъл в синьо."]
["За да продължите с този урок, натиснете CTRL+PAGE DOWN. За да отидете на предишния лист, натиснете CTRL+PAGE UP."]

{"sheet":"10","index":10,"n_rows":3,"n_cols":1,"rows_kept":3}
["Мислете за това по този начин, когато използвате списъка с полета. Полето за редове е вляво, а полето за колони е отгоре. Всяко от тях осигурява условие за полето за стойности, което ги сумира."]
["Концептуално изображение показва списъка с полета на обобщената таблица, изобразен с полето за редове в долния ляв ъгъл в жълто, полето за колони в горния десен ъгъл в оранжево и полето за стойности в долния десен ъгъл в синьо."]
["За да продължите с този урок, натиснете CTRL+PAGE DOWN. За да отидете на предишния лист, натиснете CTRL+PAGE UP."]

{"sheet":"11","index":11,"n_rows":121,"n_cols":24,"rows_kept":121}
["Едно нещо, което трябва да имате предвид: Ако поле за колони добавя много колони към обобщена таблица, то ще я направи много широка. "]
["В този пример обобщената таблица сега обхваща клетки от C10 до X15, тъй като полето за колони добави 20 нови колони. Това са много колони! Хората ще трябва да превъртат доста..."]
["За да продължите с този урок, натиснете CTRL+PAGE DOWN. За да отидете на предишния лист, натиснете CTRL+PAGE UP."]
[]
[]
[]
[]
[]
[]
[null,null,"Сума от Сума","Тип"]
[null,null,"Купувач","Книги","Храна","Гориво","Музика","Спорт","Билети","Заведения","Електричество","Медицински","Зъболекар","Данъци","Застраховка на колата","Паркинг","Електроника","Самолетни билети","Дрехи","Музикални уроци","Членски внос за клуб","Здравна застраховка","Застраховка на дома","Grand Total"]
[null,null,"Татко",{"$nulls":4},{"v":1000,"d":"1,000 лв."},{"$nulls":5},{"v":500,"d":"500 лв."},{"$nulls":3},{"v":500,"d":"500 лв."},{"$nulls":5},{"v":2000,"d":"2,000 лв."}]
[null,null,"Мила",{"v":250,"d":"250 лв."},null,null,{"v":20,"d":"20 лв."},null,{"v":125,"d":"125 лв."},{"v":20,"d":"20 лв."},{"$nulls":5},{"v":20,"d":"20 лв."},{"v":125,"d":"125 лв."},null,{"v":125,"d":"125 лв."},{"v":250,"d":"250 лв."},{"$nulls":3},{"v":935,"d":"935 лв."}]
[null,null,"Мама",null,{"v":470,"d":"470 лв."},{"v":74,"d":"74 лв."},{"$nulls":4},{"v":70,"d":"70 лв."},{"v":74,"d":"74 лв."},{"v":235,"d":"235 лв."},null,{"v":74,"d":"74 лв."},{"$nulls":5},{"v":125,"d":"125 лв."},{"v":70,"d":"70 лв."},{"v":235,"d":"235 лв."},{"v":1427,"d":"1,427 лв."}]
[null,null,"Grand Total",{"v":250,"d":"250 лв."},{"v":470,"d":"470 лв."},{"v":74,"d":"74 лв."},{"v":20,"d":"20 лв."},{"v":1000,"d":"1,000 лв."},{"v":125,"d":"125 лв."},{"v":20,"d":"20 лв."},{"v":70,"d":"70 лв."},{"v":74,"d":"74 лв."},{"v":235,"d":"235 лв."},{"v":500,"d":"500 лв."},{"v":74,"d":"74 лв."},{"v":20,"d":"20 лв."},{"v":125,"d":"125 лв."},{"v":500,"d":"500 лв."},{"v":125,"d":"125 лв."},{"v":250,"d":"250 лв."},{"v":125,"d":"125 лв."},{"v":70,"d":"70 лв."},{"v":235,"d":"235 лв."},{"v":4362,"d":"4,362 лв."}]
{"$rows_empty":84}
[null,"Дата","Купувач","Тип","Сума"]
[null,"2017-01-17","Татко","Спорт",{"v":1000,"d":"1,000 лв."}]
[null,"2017-01-17","Татко","Самолетни билети",{"v":500,"d":"500 лв."}]
[null,"2017-01-17","Татко","Данъци",{"v":500,"d":"500 лв."}]
[null,"2017-02-20","Мила","Музика",{"v":20,"d":"20 лв."}]
[null,"2017-02-25","Мила","Билети",{"v":125,"d":"125 лв."}]
[null,"2017-01-21","Мила","Книги",{"v":250,"d":"250 лв."}]
[null,"2017-02-20","Мила","Заведения",{"v":20,"d":"20 лв."}]
[null,"2017-02-25","Мила","Дрехи",{"v":125,"d":"125 лв."}]
[null,"2017-01-21","Мила","Музикални уроци",{"v":250,"d":"250 лв."}]
[null,"2017-02-20","Мила","Паркинг",{"v":20,"d":"20 лв."}]
[null,"2017-02-25","Мила","Електроника",{"v":125,"d":"125 лв."}]
[null,"2017-01-01","Мама","Гориво",{"v":74,"d":"74 лв."}]
[null,"2017-01-15","Мама","Храна",{"v":235,"d":"235 лв."}]
[null,"2017-01-21","Мама","Членски внос за клуб",{"v":125,"d":"125 лв."}]
[null,"2017-02-02","Мама","Храна",{"v":235,"d":"235 лв."}]
[null,"2017-01-01","Мама","Медицински",{"v":74,"d":"74 лв."}]
[null,"2017-01-15","Мама","Електричество",{"v":70,"d":"70 лв."}]
[null,"2017-02-02","Мама","Зъболекар",{"v":235,"d":"235 лв."}]
[null,"2017-01-01","Мама","Застраховка на колата",{"v":74,"d":"74 лв."}]
[null,"2017-01-15","Мама","Здравна застраховка",{"v":70,"d":"70 лв."}]
[null,"2017-02-02","Мама","Застраховка на дома",{"v":235,"d":"235 лв."}]

{"sheet":"12","index":12,"n_rows":119,"n_cols":5,"rows_kept":119}
["Има алтернатива на твърде широките обобщени таблици: можете да използвате второ поле за редове вместо това. Второ поле за редове ще се появи с отстъп под първото поле за редове."]
["В този пример има обобщена таблица от клетка D8 до клетка E32. Тя показва \"Татко\", \"Мила\" и \"Мама\" като първи полета за редове в колона D. След това типовете разходи са под тях като втори полета за редове с елементи, като \"Спорт\", \"Самолетни билети\", \"Заведения\" и т.н."]
["ДОБРЕ Е ДА ЗНАЕТЕ\nВторо поле за редове създава вертикално ориентирана обобщена таблица, а не хоризонтално ориентирана. За някои хора вертикалните обобщени таблици са по-лесни за четене, тъй като не изискват толкова много странично превъртане."]
["EXCEL ГОВОРИ\nПонякога хората наричат второто поле за редове \"вторично поле за редове\"."]
["За да продължите с този урок, натиснете CTRL+PAGE DOWN. За да отидете на предишния лист, натиснете CTRL+PAGE UP."]
[]
[]
[{"$nulls":3},"Row Labels","Сума от Сума"]
[{"$nulls":3},"Татко",{"v":2000,"d":"2,000 лв."}]
[{"$nulls":3},"Спорт",{"v":1000,"d":"1,000 лв."}]
[{"$nulls":3},"Данъци",{"v":500,"d":"500 лв."}]
[{"$nulls":3},"Самолетни билети",{"v":500,"d":"500 лв."}]
[{"$nulls":3},"Мила",{"v":935,"d":"935 лв."}]
[{"$nulls":3},"Книги",{"v":250,"d":"250 лв."}]
[{"$nulls":3},"Музика",{"v":20,"d":"20 лв."}]
[{"$nulls":3},"Билети",{"v":125,"d":"125 лв."}]
[{"$nulls":3},"Заведения",{"v":20,"d":"20 лв."}]
[{"$nulls":3},"Паркинг",{"v":20,"d":"20 лв."}]
[{"$nulls":3},"Електроника",{"v":125,"d":"125 лв."}]
[{"$nulls":3},"Дрехи",{"v":125,"d":"125 лв."}]
[{"$nulls":3},"Музикални уроци",{"v":250,"d":"250 лв."}]
[{"$nulls":3},"Мама",{"v":1427,"d":"1,427 лв."}]
[{"$nulls":3},"Храна",{"v":470,"d":"470 лв."}]
[{"$nulls":3},"Гориво",{"v":74,"d":"74 лв."}]
[{"$nulls":3},"Електричество",{"v":70,"d":"70 лв."}]
[{"$nulls":3},"Медицински",{"v":74,"d":"74 лв."}]
[{"$nulls":3},"Зъболекар",{"v":235,"d":"235 лв."}]
[{"$nulls":3},"Застраховка на колата",{"v":74,"d":"74 лв."}]
[{"$nulls":3},"Членски внос за клуб",{"v":125,"d":"125 лв."}]
[{"$nulls":3},"Здравна застраховка",{"v":70,"d":"70 лв."}]
[{"$nulls":3},"Застраховка на дома",{"v":235,"d":"235 лв."}]
[{"$nulls":3},"Grand Total",{"v":4362,"d":"4,362 лв."}]
{"$rows_empty":65}
[null,"Дата","Купувач","Тип","Сума"]
[null,"2017-01-17","Татко","Спорт",{"v":1000,"d":"1,000 лв."}]
[null,"2017-01-17","Татко","Самолетни билети",{"v":500,"d":"500 лв."}]
[null,"2017-01-17","Татко","Данъци",{"v":500,"d":"500 лв."}]
[null,"2017-02-20","Мила","Музика",{"v":20,"d":"20 лв."}]
[null,"2017-02-25","Мила","Билети",{"v":125,"d":"125 лв."}]
[null,"2017-01-21","Мила","Книги",{"v":250,"d":"250 лв."}]
[null,"2017-02-20","Мила","Заведения",{"v":20,"d":"20 лв."}]
[null,"2017-02-25","Мила","Дрехи",{"v":125,"d":"125 лв."}]
[null,"2017-01-21","Мила","Музикални уроци",{"v":250,"d":"250 лв."}]
[null,"2017-02-20","Мила","Паркинг",{"v":20,"d":"20 лв."}]
[null,"2017-02-25","Мила","Електроника",{"v":125,"d":"125 лв."}]
[null,"2017-01-01","Мама","Гориво",{"v":74,"d":"74 лв."}]
[null,"2017-01-15","Мама","Храна",{"v":235,"d":"235 лв."}]
[null,"2017-01-21","Мама","Членски внос за клуб",{"v":125,"d":"125 лв."}]
[null,"2017-02-02","Мама","Храна",{"v":235,"d":"235 лв."}]
[null,"2017-01-01","Мама","Медицински",{"v":74,"d":"74 лв."}]
[null,"2017-01-15","Мама","Електричество",{"v":70,"d":"70 лв."}]
[null,"2017-02-02","Мама","Зъболекар",{"v":235,"d":"235 лв."}]
[null,"2017-01-01","Мама","Застраховка на колата",{"v":74,"d":"74 лв."}]
[null,"2017-01-15","Мама","Здравна застраховка",{"v":70,"d":"70 лв."}]
[null,"2017-02-02","Мама","Застраховка на дома",{"v":235,"d":"235 лв."}]

{"sheet":"13","index":13,"n_rows":3,"n_cols":1,"rows_kept":3}
["В следващия лист ще добавите второ поле за редове. Можете да направите това, като поставите полето \"Тип\" под полето \"Купувач\" в областта за полета \"Редове\"."]
["Изображение на списъка с полета на обобщената таблица показва стрелка, сочеща плъзгането на полето \"Тип\" към областта \"Редове\"."]
["За да продължите с този урок, натиснете CTRL+PAGE DOWN. За да отидете на предишния лист, натиснете CTRL+PAGE UP."]

{"sheet":"14","index":14,"n_rows":122,"n_cols":9,"rows_kept":122}
["1. Областта на обобщената таблица за този пример е в клетки от B14 до C18. Придвижете се до някоя от тези клетки. "]
["2. Натиснете ALT + ПИ, И, за да стартирате списъка с полета на обобщената таблица. По подразбиране фокусът ще бъде текстовото поле за търсене: Редактиране на \"Въведете думи, по които да търсите\". Не въвеждайте нищо, вместо това натиснете веднъж клавиша Tab. Забележка: ако списъкът с полета не се стартира, натиснете ALT+ПИ, И отново."]
["3. Натиснете клавишите със стрелки, за да се придвижите до полето \"Тип\". Натиснете клавиша за интервал, за да добавите полето \"Тип\" към областта \"Редове\". "]
["4. Натиснете ESC, за да излезете от екрана \"Полета на обобщената таблица\". "]
["За да продължите с този урок, натиснете CTRL+PAGE DOWN. За да отидете на предишния лист, натиснете CTRL+PAGE UP.",{"$nulls":7},{"$f":"IF(AND($B$16=\"Данъци\",$C$35=74),\"Дотук добре! Добавихте второ\",\" \")","v":" "}]
[{"$nulls":8},{"$f":"IF(AND($B$16=\"Данъци\",$C$35=74),\"поле за редове към обобщената\",\" \")","v":" "}]
[{"$nulls":8},{"$f":"IF(AND($B$16=\"Данъци\",$C$35=74),\"таблица. Превъртете надолу и \",\" \")","v":" "}]
[{"$nulls":8},{"$f":"IF(AND($B$16=\"Данъци\",$C$35=74),\"щракнете върху Напред...\",\" \")","v":" "}]
[]
[]
[]
[]
[]
[null,"Row Labels","Сума от Сума"]
[null,"Татко",{"v":2000,"d":"2,000 лв."}]
[null,"Мила",{"v":935,"d":"935 лв."}]
[null,"Мама",{"v":1427,"d":"1,427 лв."}]
[null,"Grand Total",{"v":4362,"d":"4,362 лв."}]
{"$rows_empty":82}
[null,"Дата","Купувач","Тип","Сума"]
[null,"2017-01-17","Татко","Спорт",{"v":1000,"d":"1,000 лв."}]
[null,"2017-01-17","Татко","Самолетни билети",{"v":500,"d":"500 лв."}]
[null,"2017-01-17","Татко","Данъци",{"v":500,"d":"500 лв."}]
[null,"2017-02-20","Мила","Музика",{"v":20,"d":"20 лв."}]
[null,"2017-02-25","Мила","Билети",{"v":125,"d":"125 лв."}]
[null,"2017-01-21","Мила","Книги",{"v":250,"d":"250 лв."}]
[null,"2017-02-20","Мила","Заведения",{"v":20,"d":"20 лв."}]
[null,"2017-02-25","Мила","Дрехи",{"v":125,"d":"125 лв."}]
[null,"2017-01-21","Мила","Музикални уроци",{"v":250,"d":"250 лв."}]
[null,"2017-02-20","Мила","Паркинг",{"v":20,"d":"20 лв."}]
[null,"2017-02-25","Мила","Електроника",{"v":125,"d":"125 лв."}]
[null,"2017-01-01","Мама","Гориво",{"v":74,"d":"74 лв."}]
[null,"2017-01-15","Мама","Храна",{"v":235,"d":"235 лв."}]
[null,"2017-01-21","Мама","Членски внос за клуб",{"v":125,"d":"125 лв."}]
[null,"2017-02-02","Мама","Храна",{"v":235,"d":"235 лв."}]
[null,"2017-01-01","Мама","Медицински",{"v":74,"d":"74 лв."}]
[null,"2017-01-15","Мама","Електричество",{"v":70,"d":"70 лв."}]
[null,"2017-02-02","Мама","Зъболекар",{"v":235,"d":"235 лв."}]
[null,"2017-01-01","Мама","Застраховка на колата",{"v":74,"d":"74 лв."}]
[null,"2017-01-15","Мама","Здравна застраховка",{"v":70,"d":"70 лв."}]
[null,"2017-02-02","Мама","Застраховка на дома",{"v":235,"d":"235 лв."}]

{"sheet":"15","index":15,"n_rows":121,"n_cols":7,"rows_kept":121}
["Ако имате нужда да опростите обобщената таблица, можете да свиете данните за второто поле за редове \"нагоре\", така че да не ви пречат. "]
["Обобщената таблица за този пример е в клетки от F7 до G31. Изберете клетка F8, за да изберете първото поле за редове за \"Татко\". След това натиснете Alt+ПИ > З, за да разгънете второто поле, или С – за да го свиете."]
["За да продължите с този урок, натиснете CTRL+PAGE DOWN. За да отидете на предишния лист, натиснете CTRL+PAGE UP."]
[]
[]
[{"$nulls":5},{"$f":"IF(AND($F$9=\"Мила\",$G$9=935),\"Чудесно!\",\" \")","v":" "}]
[{"$nulls":5},"Row Labels","Сума от Сума"]
[{"$nulls":5},"Татко",{"v":2000,"d":"2,000 лв."}]
[{"$nulls":5},"Спорт",{"v":1000,"d":"1,000 лв."}]
[{"$nulls":5},"Данъци",{"v":500,"d":"500 лв."}]
[{"$nulls":5},"Самолетни билети",{"v":500,"d":"500 лв."}]
[{"$nulls":5},"Мила",{"v":935,"d":"935 лв."}]
[{"$nulls":5},"Книги",{"v":250,"d":"250 лв."}]
[{"$nulls":5},"Заведения",{"v":20,"d":"20 лв."}]
[{"$nulls":5},"Електроника",{"v":125,"d":"125 лв."}]
[{"$nulls":5},"Музика",{"v":20,"d":"20 лв."}]
[{"$nulls":5},"Паркинг",{"v":20,"d":"20 лв."}]
[{"$nulls":5},"Билети",{"v":125,"d":"125 лв."}]
[{"$nulls":5},"Дрехи",{"v":125,"d":"125 лв."}]
[{"$nulls":5},"Музикални уроци",{"v":250,"d":"250 лв."}]
[{"$nulls":5},"Мама",{"v":1427,"d":"1,427 лв."}]
[{"$nulls":5},"Застраховка на колата",{"v":74,"d":"74 лв."}]
[{"$nulls":5},"Зъболекар",{"v":235,"d":"235 лв."}]
[{"$nulls":5},"Електричество",{"v":70,"d":"70 лв."}]
[{"$nulls":5},"Храна",{"v":470,"d":"470 лв."}]
[{"$nulls":5},"Гориво",{"v":74,"d":"74 лв."}]
[{"$nulls":5},"Медицински",{"v":74,"d":"74 лв."}]
[{"$nulls":5},"Членски внос за клуб",{"v":125,"d":"125 лв."}]
[{"$nulls":5},"Здравна застраховка",{"v":70,"d":"70 лв."}]
[{"$nulls":5},"Застраховка на дома",{"v":235,"d":"235 лв."}]
[{"$nulls":5},"Grand Total",{"v":4362,"d":"4,362 лв."}]
{"$rows_empty":68}
[null,"Дата","Купувач","Тип","Сума"]
[null,"2017-01-17","Татко","Спорт",{"v":1000,"d":"1,000 лв."}]
[null,"2017-01-17","Татко","Самолетни билети",{"v":500,"d":"500 лв."}]
[null,"2017-01-17","Татко","Данъци",{"v":500,"d":"500 лв."}]
[null,"2017-02-20","Мила","Музика",{"v":20,"d":"20 лв."}]
[null,"2017-02-25","Мила","Билети",{"v":125,"d":"125 лв."}]
[null,"2017-01-21","Мила","Книги",{"v":250,"d":"250 лв."}]
[null,"2017-02-20","Мила","Заведения",{"v":20,"d":"20 лв."}]
[null,"2017-02-25","Мила","Дрехи",{"v":125,"d":"125 лв."}]
[null,"2017-01-21","Мила","Музикални уроци",{"v":250,"d":"250 лв."}]
[null,"2017-02-20","Мила","Паркинг",{"v":20,"d":"20 лв."}]
[null,"2017-02-25","Мила","Електроника",{"v":125,"d":"125 лв."}]
[null,"2017-01-01","Мама","Гориво",{"v":74,"d":"74 лв."}]
[null,"2017-01-15","Мама","Храна",{"v":235,"d":"235 лв."}]
[null,"2017-01-21","Мама","Членски внос за клуб",{"v":125,"d":"125 лв."}]
[null,"2017-02-02","Мама","Храна",{"v":235,"d":"235 лв."}]
[null,"2017-01-01","Мама","Медицински",{"v":74,"d":"74 лв."}]
[null,"2017-01-15","Мама","Електричество",{"v":70,"d":"70 лв."}]
[null,"2017-02-02","Мама","Зъболекар",{"v":235,"d":"235 лв."}]
[null,"2017-01-01","Мама","Застраховка на колата",{"v":74,"d":"74 лв."}]
[null,"2017-01-15","Мама","Здравна застраховка",{"v":70,"d":"70 лв."}]
[null,"2017-02-02","Мама","Застраховка на дома",{"v":235,"d":"235 лв."}]

{"sheet":"16","index":16,"n_rows":121,"n_cols":7,"rows_kept":121}
["Можете също да свиете или разгънете цялото второ поле за редове, за да опростите още повече обобщената таблица."]
["Ето основното"]
["Изберете диапазона от данни на обобщената таблица от клетки F7 – G31, след което натиснете ALT+ПИ > С, за да свиете цялата група. Обратно на това, ALT+ПИ > З ще разгъне цялата група."]
["За да продължите с този урок, натиснете CTRL+PAGE DOWN. За да отидете на предишния лист, натиснете CTRL+PAGE UP."]
[]
[{"$nulls":5},{"$f":"IF(AND($F$9=\"Мила\",$G$9=935),\"Право в целта!\",\" \")","v":" "}]
[{"$nulls":5},"Row Labels","Сума от Сума"]
[{"$nulls":5},"Татко",{"v":2000,"d":"2,000 лв."}]
[{"$nulls":5},"Спорт",{"v":1000,"d":"1,000 лв."}]
[{"$nulls":5},"Данъци",{"v":500,"d":"500 лв."}]
[{"$nulls":5},"Самолетни билети",{"v":500,"d":"500 лв."}]
[{"$nulls":5},"Мила",{"v":935,"d":"935 лв."}]
[{"$nulls":5},"Книги",{"v":250,"d":"250 лв."}]
[{"$nulls":5},"Заведения",{"v":20,"d":"20 лв."}]
[{"$nulls":5},"Електроника",{"v":125,"d":"125 лв."}]
[{"$nulls":5},"Музика",{"v":20,"d":"20 лв."}]
[{"$nulls":5},"Паркинг",{"v":20,"d":"20 лв."}]
[{"$nulls":5},"Билети",{"v":125,"d":"125 лв."}]
[{"$nulls":5},"Дрехи",{"v":125,"d":"125 лв."}]
[{"$nulls":5},"Музикални уроци",{"v":250,"d":"250 лв."}]
[{"$nulls":5},"Мама",{"v":1427,"d":"1,427 лв."}]
[{"$nulls":5},"Застраховка на колата",{"v":74,"d":"74 лв."}]
[{"$nulls":5},"Зъболекар",{"v":235,"d":"235 лв."}]
[{"$nulls":5},"Електричество",{"v":70,"d":"70 лв."}]
[{"$nulls":5},"Храна",{"v":470,"d":"470 лв."}]
[{"$nulls":5},"Гориво",{"v":74,"d":"74 лв."}]
[{"$nulls":5},"Медицински",{"v":74,"d":"74 лв."}]
[{"$nulls":5},"Членски внос за клуб",{"v":125,"d":"125 лв."}]
[{"$nulls":5},"Здравна застраховка",{"v":70,"d":"70 лв."}]
[{"$nulls":5},"Застраховка на дома",{"v":235,"d":"235 лв."}]
[{"$nulls":5},"Grand Total",{"v":4362,"d":"4,362 лв."}]
{"$rows_empty":68}
[null,"Дата","Купувач","Тип","Сума"]
[null,"2017-01-17","Татко","Спорт",{"v":1000,"d":"1,000 лв."}]
[null,"2017-01-17","Татко","Самолетни билети",{"v":500,"d":"500 лв."}]
[null,"2017-01-17","Татко","Данъци",{"v":500,"d":"500 лв."}]
[null,"2017-02-20","Мила","Музика",{"v":20,"d":"20 лв."}]
[null,"2017-02-25","Мила","Билети",{"v":125,"d":"125 лв."}]
[null,"2017-01-21","Мила","Книги",{"v":250,"d":"250 лв."}]
[null,"2017-02-20","Мила","Заведения",{"v":20,"d":"20 лв."}]
[null,"2017-02-25","Мила","Дрехи",{"v":125,"d":"125 лв."}]
[null,"2017-01-21","Мила","Музикални уроци",{"v":250,"d":"250 лв."}]
[null,"2017-02-20","Мила","Паркинг",{"v":20,"d":"20 лв."}]
[null,"2017-02-25","Мила","Електроника",{"v":125,"d":"125 лв."}]
[null,"2017-01-01","Мама","Гориво",{"v":74,"d":"74 лв."}]
[null,"2017-01-15","Мама","Храна",{"v":235,"d":"235 лв."}]
[null,"2017-01-21","Мама","Членски внос за клуб",{"v":125,"d":"125 лв."}]
[null,"2017-02-02","Мама","Храна",{"v":235,"d":"235 лв."}]
[null,"2017-01-01","Мама","Медицински",{"v":74,"d":"74 лв."}]
[null,"2017-01-15","Мама","Електричество",{"v":70,"d":"70 лв."}]
[null,"2017-02-02","Мама","Зъболекар",{"v":235,"d":"235 лв."}]
[null,"2017-01-01","Мама","Застраховка на колата",{"v":74,"d":"74 лв."}]
[null,"2017-01-15","Мама","Здравна застраховка",{"v":70,"d":"70 лв."}]
[null,"2017-02-02","Мама","Застраховка на дома",{"v":235,"d":"235 лв."}]

{"sheet":"17","index":17,"n_rows":107,"n_cols":13,"rows_kept":107}
["Можете също да имате няколко полета за колони. Те също могат да бъдат свити или разгънати."]
["Обобщената таблица за този пример се разпростира от клетка B13 до клетка M19. В този случай имаме категория \"Тип\" в раздела \"Колони\", която включва елементи за храна и комунални услуги."]
["ИЗПРОБВАЙТЕ ТОВА\nИзберете \"Храна\" в клетка C14 и натиснете ALT+ПИ > С, за да свиете цялото поле. ALT+ПИ > З ще го разгъне."]
["За да продължите с този урок, натиснете CTRL+PAGE DOWN. За да отидете на предишния лист, натиснете CTRL+PAGE UP."]
{"$rows_empty":7}
[null,null,{"$f":"IF(AND($C$16=398,$D$15=\"Янр\"),\"Чудесна работа!\",\" \")","v":" "}]
[null,"Сума от Сума","Column Labels"]
[null,null,"Храна",{"$nulls":3},"Храна Total","Комунални услуги",{"$nulls":3},"Комунални услуги Total","Grand Total"]
[null,"Row Labels","Янр","Фев","Мар","Апр",null,"Янр","Фев","Мар","Апр"]
[null,"Мила",{"v":74,"d":"74 лв."},{"v":74,"d":"74 лв."},{"v":125,"d":"125 лв."},{"v":125,"d":"125 лв."},{"v":398,"d":"398 лв."},{"$nulls":5},{"v":398,"d":"398 лв."}]
[null,"Татко",{"v":235,"d":"235 лв."},{"v":235,"d":"235 лв."},{"v":235,"d":"235 лв."},{"v":74,"d":"74 лв."},{"v":779,"d":"779 лв."},{"$nulls":5},{"v":779,"d":"779 лв."}]
[null,"Мама",{"$nulls":5},{"v":1000,"d":"1,000 лв."},{"v":1000,"d":"1,000 лв."},{"v":20,"d":"20 лв."},{"v":70,"d":"70 лв."},{"v":2090,"d":"2,090 лв."},{"v":2090,"d":"2,090 лв."}]
[null,"Grand Total",{"v":309,"d":"309 лв."},{"v":309,"d":"309 лв."},{"v":360,"d":"360 лв."},{"v":199,"d":"199 лв."},{"v":1177,"d":"1,177 лв."},{"v":1000,"d":"1,000 лв."},{"v":1000,"d":"1,000 лв."},{"v":20,"d":"20 лв."},{"v":70,"d":"70 лв."},{"v":2090,"d":"2,090 лв."},{"v":3267,"d":"3,267 лв."}]
{"$rows_empty":75}
[null,"Месец","Купувач","Тип","Сума"]
[null,"Янр","Мила","Храна",{"v":74,"d":"74 лв."}]
[null,"Янр","Татко","Храна",{"v":235,"d":"235 лв."}]
[null,"Янр","Мама","Комунални услуги",{"v":1000,"d":"1,000 лв."}]
[null,"Фев","Мила","Храна",{"v":74,"d":"74 лв."}]
[null,"Фев","Татко","Храна",{"v":235,"d":"235 лв."}]
[null,"Фев","Мама","Комунални услуги",{"v":1000,"d":"1,000 лв."}]
[null,"Мар","Мила","Храна",{"v":125,"d":"125 лв."}]
[null,"Мар","Татко","Храна",{"v":235,"d":"235 лв."}]
[null,"Мар","Мама","Комунални услуги",{"v":20,"d":"20 лв."}]
[null,"Апр","Мила","Храна",{"v":125,"d":"125 лв."}]
[null,"Апр","Татко","Храна",{"v":74,"d":"74 лв."}]
[null,"Апр","Мама","Комунални услуги",{"v":70,"d":"70 лв."}]

{"sheet":"18","index":18,"n_rows":146,"n_cols":5,"rows_kept":146}
["Нещо, което да имате предвид: Ако имате нужда от повече подробности, можете да добавите още много полета за редове или полета за колони. В този пример има три полета за редове."]
["Обобщената таблица за този пример обхваща клетки от D8 до E29 и има полета за \"Сезон\", \"Купувач\" и \"Тип\" в колона D, със \"Сума от Сума\" в колона E."]
["ЕКСПЕРТЕН СЪВЕТ\nСамо защото можете да добавите множество полета, не означава, че трябва да го направите. В този пример всичко работи добре. Но понякога твърде многото полета със съответните им отстъпи може да направят обобщената таблица твърде сложна за разбиране от други хора. "]
["За да продължите с този урок, натиснете CTRL+PAGE DOWN. За да отидете на предишния лист, натиснете CTRL+PAGE UP."]
[]
[]
[]
[{"$nulls":3},"Row Labels","Сума от Сума"]
[{"$nulls":3},"Есен",{"v":5425,"d":"5,425 лв."}]
[{"$nulls":3},"Мама",{"v":5425,"d":"5,425 лв."}]
[{"$nulls":3},"Застраховка",{"v":1272,"d":"1,272 лв."}]
[{"$nulls":3},"Наем",{"v":3220,"d":"3,220 лв."}]
[{"$nulls":3},"Комунални услуги",{"v":933,"d":"933 лв."}]
[{"$nulls":3},"Пролет",{"v":4760,"d":"4,760 лв."}]
[{"$nulls":3},"Татко",{"v":4760,"d":"4,760 лв."}]
[{"$nulls":3},"Застраховка",{"v":1040,"d":"1,040 лв."}]
[{"$nulls":3},"Наем",{"v":2400,"d":"2,400 лв."}]
[{"$nulls":3},"Комунални услуги",{"v":1320,"d":"1,320 лв."}]
[{"$nulls":3},"Лято",{"v":3473,"d":"3,473 лв."}]
[{"$nulls":3},"Мама",{"v":3473,"d":"3,473 лв."}]
[{"$nulls":3},"Застраховка",{"v":1080,"d":"1,080 лв."}]
[{"$nulls":3},"Наем",{"v":1260,"d":"1,260 лв."}]
[{"$nulls":3},"Комунални услуги",{"v":1133,"d":"1,133 лв."}]
[{"$nulls":3},"Зима",{"v":4100,"d":"4,100 лв."}]
[{"$nulls":3},"Татко",{"v":4100,"d":"4,100 лв."}]
[{"$nulls":3},"Застраховка",{"v":1030,"d":"1,030 лв."}]
[{"$nulls":3},"Наем",{"v":1420,"d":"1,420 лв."}]
[{"$nulls":3},"Комунални услуги",{"v":1650,"d":"1,650 лв."}]
[{"$nulls":3},"Grand Total",{"v":17758,"d":"17,758 лв."}]
{"$rows_empty":68}
[null,"Купувач","Сезон","Тип","Сума"]
[null,"Татко","Зима","Застраховка",{"v":300,"d":"300 лв."}]
[null,"Татко","Зима","Наем",{"v":200,"d":"200 лв."}]
[null,"Татко","Зима","Комунални услуги",{"v":400,"d":"400 лв."}]
[null,"Татко","Зима","Застраховка",{"v":300,"d":"300 лв."}]
[null,"Татко","Зима","Наем",{"v":800,"d":"800 лв."}]
[null,"Татко","Зима","Комунални услуги",{"v":400,"d":"400 лв."}]
[null,"Татко","Зима","Застраховка",{"v":200,"d":"200 лв."}]
[null,"Татко","Зима","Наем",{"v":300,"d":"300 лв."}]
[null,"Татко","Зима","Комунални услуги",{"v":450,"d":"450 лв."}]
[null,"Татко","Зима","Застраховка",{"v":230,"d":"230 лв."}]
[null,"Татко","Зима","Наем",{"v":120,"d":"120 лв."}]
[null,"Татко","Зима","Комунални услуги",{"v":400,"d":"400 лв."}]
[null,"Татко","Пролет","Застраховка",{"v":210,"d":"210 лв."}]
[null,"Татко","Пролет","Наем",{"v":300,"d":"300 лв."}]
[null,"Татко","Пролет","Комунални услуги",{"v":400,"d":"400 лв."}]
[null,"Татко","Пролет","Застраховка",{"v":230,"d":"230 лв."}]
[null,"Татко","Пролет","Наем",{"v":900,"d":"900 лв."}]
[null,"Татко","Пролет","Комунални услуги",{"v":300,"d":"300 лв."}]
[null,"Татко","Пролет","Застраховка",{"v":200,"d":"200 лв."}]
[null,"Татко","Пролет","Наем",{"v":1000,"d":"1,000 лв."}]
[null,"Татко","Пролет","Комунални услуги",{"v":220,"d":"220 лв."}]
[null,"Татко","Пролет","Застраховка",{"v":400,"d":"400 лв."}]
[null,"Татко","Пролет","Наем",{"v":200,"d":"200 лв."}]
[null,"Татко","Пролет","Комунални услуги",{"v":400,"d":"400 лв."}]
[null,"Мама","Лято","Застраховка",{"v":100,"d":"100 лв."}]
[null,"Мама","Лято","Наем",{"v":30,"d":"30 лв."}]
[null,"Мама","Лято","Комунални услуги",{"v":123,"d":"123 лв."}]
[null,"Мама","Лято","Застраховка",{"v":300,"d":"300 лв."}]
[null,"Мама","Лято","Наем",{"v":350,"d":"350 лв."}]
[null,"Мама","Лято","Комунални услуги",{"v":230,"d":"230 лв."}]
[null,"Мама","Лято","Застраховка",{"v":120,"d":"120 лв."}]
[null,"Мама","Лято","Наем",{"v":640,"d":"640 лв."}]
[null,"Мама","Лято","Комунални услуги",{"v":530,"d":"530 лв."}]
[null,"Мама","Лято","Застраховка",{"v":560,"d":"560 лв."}]
[null,"Мама","Лято","Наем",{"v":240,"d":"240 лв."}]
[null,"Мама","Лято","Комунални услуги",{"v":250,"d":"250 лв."}]
[null,"Мама","Есен","Застраховка",{"v":62,"d":"62 лв."}]
[null,"Мама","Есен","Наем",{"v":600,"d":"600 лв."}]
[null,"Мама","Есен","Комунални услуги",{"v":340,"d":"340 лв."}]
[null,"Мама","Есен","Застраховка",{"v":205,"d":"205 лв."}]
[null,"Мама","Есен","Наем",{"v":500,"d":"500 лв."}]
[null,"Мама","Есен","Комунални услуги",{"v":403,"d":"403 лв."}]
[null,"Мама","Есен","Застраховка",{"v":503,"d":"503 лв."}]
[null,"Мама","Есен","Наем",{"v":2000,"d":"2,000 лв."}]
[null,"Мама","Есен","Комунални услуги",{"v":140,"d":"140 лв."}]
[null,"Мама","Есен","Застраховка",{"v":502,"d":"502 лв."}]
[null,"Мама","Есен","Наем",{"v":120,"d":"120 лв."}]
[null,"Мама","Есен","Комунални услуги",{"v":50,"d":"50 лв."}]

{"sheet":"19","index":19,"n_rows":55,"n_cols":5,"rows_kept":55}
["Готови ли сте за още упражнения? Използвайте шанса да прегледате данните по-долу в клетки от B7 до E55. Когато сте готови, преминете към следващия лист и ще упражните това, което напред дотук. "]
["Няма нужда да преглеждате всички редове с данни. Прегледайте само имената на полетата в ред 7. Ще работите с тях в следващия лист. "]
["За да продължите с този урок, натиснете CTRL+PAGE DOWN. За да отидете на предишния лист, натиснете CTRL+PAGE UP."]
[]
[]
[]
[null,"Сезон","Търговски представител","Продукт","Продадени бройки"]
[null,"Зима","Биляна","Портокали",300]
[null,"Зима","Явор","Грейпфрути",200]
[null,"Зима","Стефан","Ябълки",400]
[null,"Зима","Биляна","Банани",300]
[null,"Зима","Явор","Портокали",800]
[null,"Зима","Стефан","Грейпфрути",400]
[null,"Зима","Биляна","Ябълки",200]
[null,"Зима","Явор","Банани",300]
[null,"Зима","Стефан","Портокали",450]
[null,"Зима","Биляна","Грейпфрути",230]
[null,"Зима","Явор","Ябълки",120]
[null,"Зима","Стефан","Банани",400]
[null,"Пролет","Биляна","Цвекло",210]
[null,"Пролет","Явор","Картофи",300]
[null,"Пролет","Стефан","Маруля",400]
[null,"Пролет","Биляна","Репички",230]
[null,"Пролет","Явор","Цвекло",900]
[null,"Пролет","Стефан","Картофи",300]
[null,"Пролет","Биляна","Маруля",200]
[null,"Пролет","Явор","Репички",1000]
[null,"Пролет","Стефан","Цвекло",220]
[null,"Пролет","Биляна","Картофи",400]
[null,"Пролет","Явор","Маруля",200]
[null,"Пролет","Стефан","Репички",400]
[null,"Лято","Биляна","Боровинки",100]
[null,"Лято","Явор","Ягоди",30]
[null,"Лято","Стефан","Грозде",123]
[null,"Лято","Биляна","Тикви",300]
[null,"Лято","Явор","Боровинки",350]
[null,"Лято","Стефан","Ягоди",230]
[null,"Лято","Биляна","Грозде",120]
[null,"Лято","Явор","Тикви",640]
[null,"Лято","Стефан","Боровинки",530]
[null,"Лято","Биляна","Ягоди",560]
[null,"Лято","Явор","Грозде",240]
[null,"Лято","Стефан","Тикви",250]
[null,"Есен","Биляна","Тикви цигулки",62]
[null,"Есен","Явор","Тиквички",600]
[null,"Есен","Стефан","Ябълки",340]
[null,"Есен","Биляна","Портокали",205]
[null,"Есен","Явор","Тикви цигулки",500]
[null,"Есен","Стефан","Тиквички",403]
[null,"Есен","Биляна","Ябълки",503]
[null,"Есен","Явор","Портокали",2000]
[null,"Есен","Стефан","Тикви цигулки",140]
[null,"Есен","Биляна","Тиквички",502]
[null,"Есен","Явор","Ябълки",120]
[null,"Есен","Стефан","Портокали",50]

{"sheet":"20","index":20,"n_rows":19,"n_cols":9,"rows_kept":19}
["1. Областта на обобщената таблица за този пример е в клетки от B14 до C19. Придвижете се до някоя от тези клетки. \n\n"]
["2. Натиснете ALT + ПИ, И, за да стартирате списъка с полета на обобщената таблица. По подразбиране фокусът ще бъде текстовото поле за търсене: Редактиране на \"Въведете думи, по които да търсите\". Не въвеждайте нищо, вместо това натиснете веднъж клавиша Tab. Забележка: ако списъкът с полета не се стартира, натиснете ALT+ПИ, И отново."]
["3. Натиснете клавишите със стрелки, за да се придвижите до полето \"Търговски представител\". Натиснете клавиша за интервал, за да добавите полето \"Търговски представител\" към областта \"Редове\". Ако искате да покажете подробностите за Търговски представител в областта \"Колони\", използвайте клавиша Tab, за да се придвижите до полето \"Търговски представител\" в раздела \"Редове\", след което натиснете клавиша за интервал и изберете \"Премести в етикетите на колоните\". Натиснете ESC, за да излезете от екрана \"Полета на обобщената таблица\". "]
["4. Определете кой е продал най-много артикули през есента, след което направете избор в клетка I8. "]
["За да продължите с този урок, натиснете CTRL+PAGE DOWN. За да отидете на предишния лист, натиснете CTRL+PAGE UP."]
[]
[{"$nulls":8},"Изберете стойност:"]
[]
[{"$nulls":8},{"$f":"IF($I$8=\"Явор\",\"Прави сте!\",IF($I$8=\"Стефан\",\"Опитайте отново...\",IF($I$8=\"Биляна\",\"Не съвсем...\",IF($I$8=\" \",\" \",\" \"))))","v":" "}]
[]
[]
[]
[]
[null,"Row Labels","Сума от Продадени бройки"]
[null,"Есен",{"v":5425,"d":"5,425"}]
[null,"Пролет",{"v":4760,"d":"4,760"}]
[null,"Лято",{"v":3473,"d":"3,473"}]
[null,"Зима",{"v":4100,"d":"4,100"}]
[null,"Grand Total",{"v":17758,"d":"17,758"}]

{"sheet":"21","index":21,"n_rows":15,"n_cols":10,"rows_kept":15}
["1. Щракнете върху клетка B14, за да активирате обобщената таблица, озаглавена \"Сума от Продадени бройки\".\n\n"]
["2. Натиснете ALT + ПИ, И, за да стартирате списъка с полета на обобщената таблица. По подразбиране фокусът ще бъде текстовото поле за търсене: Редактиране на \"Въведете думи, по които да търсите\". Не въвеждайте нищо, вместо това натиснете веднъж клавиша Tab. Забележка: ако списъкът с полета не се стартира, натиснете ALT+ПИ, И отново."]
["3. Използвайте клавиша със стрелка и клавиша за интервал, за да разгънете примера във вертикална обобщена таблица, която включва сезоните вляво и Търговски представители с отстъп под сезоните. Натиснете клавиша ESC, за да излезете от екрана с полета на обобщената таблица. "]
["За да продължите с този урок, натиснете CTRL+PAGE DOWN. За да отидете на предишния лист, натиснете CTRL+PAGE UP."]
[{"$nulls":9},{"$f":"IF(AND(B$15=\"Есен\",$C$16=1272),\"Добра работа! Поставихте второ\",\" \")","v":" "}]
[{"$nulls":9},{"$f":"IF(AND(B$15=\"Есен\",$C$16=1272),\"поле за редове. Сега превъртете\",\" \")","v":" "}]
[{"$nulls":9},{"$f":"IF(AND(B$15=\"Есен\",$C$16=1272),\"надолу и щракнете върху Напред.\",\" \")","v":" "}]
[]
[]
[]
[]
[]
[]
[null,"Сума от Продадени бройки"]
[null,{"v":17758,"d":"17,758"}]

{"sheet":"22","index":22,"n_rows":15,"n_cols":10,"rows_kept":15}
["1. Щракнете върху клетка B14, за да активирате обобщената таблица, озаглавена \"Сума от Продадени бройки\"."]
["2. Натиснете ALT + ПИ, И, за да стартирате списъка с полета на обобщената таблица. По подразбиране фокусът ще бъде текстовото поле за търсене: Редактиране на \"Въведете думи, по които да търсите\". Не въвеждайте нищо, вместо това натиснете веднъж клавиша Tab. Забележка: ако списъкът с полета не се стартира, натиснете ALT+ПИ, И отново."]
["3. Използвайте клавиша със стрелка и клавиша за интервал, за да промените примера така, че да показва всеки продукт на отделен ред и всеки сезон в отделна колона."]
["За да продължите с този урок, натиснете CTRL+PAGE DOWN. За да отидете на предишния лист, натиснете CTRL+PAGE UP."]
[{"$nulls":9},{"$f":"IF(AND($B$16=\"Банани\",$G$26=1505),\"Добра работа! Поставихте\",\" \")","v":" "}]
[{"$nulls":9},{"$f":"IF(AND($B$16=\"Банани\",$G$26=1505),\"поле за редове от лявата страна,\",\" \")","v":" "}]
[{"$nulls":9},{"$f":"IF(AND($B$16=\"Банани\",$G$26=1505),\"и поле за колони с четири нови\",\" \")","v":" "}]
[{"$nulls":9},{"$f":"IF(AND($B$16=\"Банани\",$G$26=1505),\"колони. Превъртете надолу\",\" \")","v":" "}]
[{"$nulls":9},{"$f":"IF(AND($B$16=\"Банани\",$G$26=1505),\"надолу и щракнете върху Напред...\",\" \")","v":" "}]
[]
[]
[]
[]
[null,"Сума от Продадени бройки"]
[null,{"v":17758,"d":"17,758"}]

{"sheet":"23","index":23,"n_rows":17,"n_cols":18,"rows_kept":17}
["1. Щракнете върху клетка B14, за да активирате обобщената таблица, озаглавена \"Сума от Продадени бройки\".\n\n"]
["2. Натиснете ALT + ПИ, И, за да стартирате списъка с полета на обобщената таблица. По подразбиране фокусът ще бъде текстовото поле за търсене: Редактиране на \"Въведете думи, по които да търсите\". Не въвеждайте нищо, вместо това натиснете веднъж клавиша Tab. Забележка: ако списъкът с полета не се стартира, натиснете ALT+ПИ, И отново."]
["3. Използвайте клавиша Tab, клавиша със стрелка и клавиша за интервал, за да промените примера така, че да показва търговските представители вляво и сезоните с отстъп под тях."]
["За да продължите с този урок, натиснете CTRL+PAGE DOWN. За да отидете на предишния лист, натиснете CTRL+PAGE UP."]
[{"$nulls":10},{"$f":"IF(AND($B$15=\"Стефан\",$C$15=5036),\"Добра работа! Сега данните са\",\" \")","v":" "}]
[{"$nulls":10},{"$f":"IF(AND($B$15=\"Стефан\",$C$15=5036),\"по-лесни за четене. Превъртете\",\" \")","v":" "}]
[{"$nulls":10},{"$f":"IF(AND($B$15=\"Стефан\",$C$15=5036),\"надолу и щракнете върху Напред...\",\" \")","v":" "}]
[]
[]
[]
[]
[]
[]
[null,null,"Column Labels"]
[null,null,"Стефан",{"$nulls":3},"Стефан Total","Явор",{"$nulls":3},"Явор Total","Биляна",{"$nulls":3},"Биляна Total","Grand Total"]
[null,null,"Есен","Пролет","Лято","Зима",null,"Есен","Пролет","Лято","Зима",null,"Есен","Пролет","Лято","Зима"]
[null,"Сума от Продадени бройки",933,{"v":1320,"d":"1,320"},{"v":1133,"d":"1,133"},{"v":1650,"d":"1,650"},{"v":5036,"d":"5,036"},{"v":3220,"d":"3,220"},{"v":2400,"d":"2,400"},{"v":1260,"d":"1,260"},{"v":1420,"d":"1,420"},{"v":8300,"d":"8,300"},{"v":1272,"d":"1,272"},{"v":1040,"d":"1,040"},{"v":1080,"d":"1,080"},{"v":1030,"d":"1,030"},{"v":4422,"d":"4,422"},{"v":17758,"d":"17,758"}]

{"sheet":"24","index":24,"n_rows":16,"n_cols":9,"rows_kept":16}
["1. Щракнете върху клетка B15, за да активирате обобщената таблица, озаглавена \"Сума от Продадени бройки\"."]
["2. Натиснете ALT + ПИ, И, за да стартирате списъка с полета на обобщената таблица. По подразбиране фокусът ще бъде текстовото поле за търсене: Редактиране на \"Въведете думи, по които да търсите\". Не въвеждайте нищо, вместо това натиснете веднъж клавиша Tab. Забележка: ако списъкът с полета не се стартира, натиснете ALT+ПИ, И отново."]
["3. Използвайте клавиша Tab, клавиша със стрелка и клавиша за интервал, за да промените примера така, че всеки търговски представител да има отделни полета за колони със сезоните вляво и продуктите с отстъп под тях."]
["4. Изберете клетка I9 и посочете колко грейпфрути е продал Стефан през зимата."]
["За да продължите с този урок, натиснете CTRL+PAGE DOWN. За да отидете на предишния лист, натиснете CTRL+PAGE UP."]
[]
[]
[{"$nulls":8},"Изберете стойност:"]
[]
[{"$nulls":8},{"$f":"IF($I$9=400,\"Прави сте!\",IF($I$9=530,\"Опитайте отново...\",IF($I$9=123,\"Не съвсем…\",\" \")))","v":" "}]
[]
[]
[]
[]
[null,"Сума от Продадени бройки"]
[null,{"v":17758,"d":"17,758"}]

{"sheet":"Научете повече","index":25,"n_rows":8,"n_cols":1,"rows_kept":8}
["Добра работа. Не са ли страхотни обобщените таблици?"]
["Съветваме ви обаче да продължите напред! Има още много неща за откриване..."]
["Още информация за обобщените таблици\nОткрийте какво още можете да правите, като прочетете тази полезна статия за обобщени таблици."]
["За обновяването\nПрочетете тази важна статия за това как да обновявате обобщени таблици. "]
["Общност\nСвържете се с други почитатели на Excel. Те могат да ви помогнат, а и вие можете да им помогнете."]
[]
[]
[" "]